bitfinex/quotes_BTCUSD_20251212
["timestamp","ask_amount","ask_price","bid_price","bid_amount"]
[1765530452529,0.01,92317.0,92315.0,0.010832]
[1765530452747,0.01,92317.0,92316.0,0.21664716]
[1765530453564,0.005,92317.0,92316.0,0.21664716]
[1765530454183,0.01,92317.0,92316.0,0.21664716]
[1765530454647,0.005,92317.0,92316.0,0.21664716]
[1765530455032,0.01,92317.0,92316.0,0.21764716]
[1765530456513,0.01,92317.0,92316.0,0.001]
[1765530465409,0.28075945,92317.0,92316.0,0.001]
[1765530468366,0.32526345,92317.0,92316.0,0.001]
[1765530473156,0.27114882,92317.0,92316.0,0.001]
[1765530483479,0.22664482,92317.0,92316.0,0.001]
[1765530485475,0.27114882,92317.0,92316.0,0.001]
[1765530488945,0.22664482,92317.0,92316.0,0.001]
[1765530496061,0.27666321,92317.0,92316.0,0.001]
[1765530496264,0.28749732,92317.0,92316.0,0.001]
[1765530496454,0.37169979,92317.0,92316.0,0.001]
[1765530498862,0.38877979,92317.0,92316.0,0.001]
[1765530503882,0.21669411,92296.0,92295.0,9.699e-05]
[1765530505251,0.21769411,92296.0,92295.0,0.00209699]
[1765530506605,0.21669411,92296.0,92295.0,9.699e-05]
[1765530506810,0.21769411,92296.0,92295.0,0.00109699]
[1765530509996,0.26219811,92296.0,92295.0,0.00109699]
[1765530511768,0.21769411,92296.0,92295.0,0.00109699]
[1765530517804,0.001,92296.0,92295.0,0.00109699]
[1765530518207,0.001,92296.0,92295.0,0.21779345]
[1765530520016,0.001,92296.0,92295.0,0.00109699]
[1765530520236,0.21769411,92296.0,92295.0,0.00109699]
[1765530521089,0.28713499,92296.0,92295.0,0.00109699]
[1765530521276,0.21769411,92296.0,92295.0,0.00109699]
[1765530525872,0.001,92296.0,92295.0,0.00109699]
[1765530526092,0.21769411,92296.0,92295.0,0.00109699]
[1765530531103,0.26219811,92296.0,92295.0,0.00109699]
[1765530531306,0.33608926,92296.0,92295.0,0.00109699]
[1765530532216,0.07489115,92296.0,92295.0,0.00109699]
[1765530532418,0.21769411,92296.0,92295.0,0.00109699]
[1765530532761,0.21769411,92296.0,92295.0,9.699e-05]
[1765530532762,0.21669411,92296.0,92295.0,9.699e-05]
[1765530533988,0.21669411,92296.0,92295.0,0.00109699]
[1765530534612,0.26219811,92296.0,92295.0,0.00209699]
[1765530534817,0.31612831,92296.0,92295.0,0.00209699]
[1765530535194,0.31612831,92296.0,92295.0,0.00109699]
[1765530535195,0.31512831,92296.0,92295.0,0.00109699]
[1765530535374,0.31612831,92296.0,92295.0,0.00209699]
[1765530536033,0.31512831,92296.0,92295.0,0.00109699]
[1765530536187,0.31912831,92296.0,92295.0,0.00209699]
[1765530536722,0.31912831,92296.0,92295.0,0.00109699]
[1765530536939,0.32212831,92296.0,92295.0,0.00109699]
[1765530537232,0.31912831,92296.0,92295.0,0.00109699]
[1765530537435,0.32212831,92296.0,92295.0,0.00109699]
[1765530537636,0.32212831,92296.0,92295.0,9.699e-05]
[1765530537637,0.31812831,92296.0,92295.0,9.699e-05]
[1765530538024,0.32212831,92296.0,92295.0,0.00109699]
[1765530538462,0.31812831,92296.0,92295.0,9.699e-05]
[1765530538685,0.32212831,92296.0,92295.0,0.00109699]
[1765530538826,0.26813698,92296.0,92295.0,0.00109699]
[1765530539255,0.26413698,92296.0,92295.0,9.699e-05]
[1765530539537,0.26513698,92296.0,92295.0,0.00109699]
[1765530540004,0.26813698,92296.0,92295.0,0.00109699]
[1765530540158,0.26513698,92296.0,92295.0,0.00109699]
[1765530540356,0.26813698,92296.0,92295.0,0.00109699]
[1765530540559,0.26413698,92296.0,92295.0,9.699e-05]
[1765530540798,0.26113698,92296.0,92295.0,9.699e-05]
[1765530541159,0.26413698,92296.0,92295.0,9.699e-05]
[1765530541436,0.26413698,92296.0,92295.0,0.00109699]
[1765530541437,0.26813698,92296.0,92295.0,0.00109699]
[1765530542347,0.26413698,92296.0,92295.0,9.699e-05]
[1765530542522,0.26513698,92296.0,92295.0,0.00109699]
[1765530543078,0.26813698,92296.0,92295.0,0.00109699]
[1765530543217,0.26513698,92296.0,92295.0,0.00109699]
[1765530543629,0.26813698,92296.0,92295.0,0.00109699]
[1765530543852,0.26413698,92296.0,92295.0,9.699e-05]
[1765530544264,0.26513698,92296.0,92295.0,0.00109699]
[1765530544691,0.26413698,92296.0,92295.0,9.699e-05]
[1765530544886,0.26813698,92296.0,92295.0,0.00109699]
[1765530545812,0.26513698,92296.0,92295.0,0.00109699]
[1765530546073,0.26813698,92296.0,92295.0,0.00109699]
[1765530546276,0.26513698,92296.0,92295.0,0.00109699]
[1765530546682,0.26813698,92296.0,92295.0,0.00109699]
[1765530546907,0.26413698,92296.0,92295.0,9.699e-05]
[1765530547109,0.26813698,92296.0,92295.0,0.00109699]
[1765530569584,0.22363298,92296.0,92295.0,0.00109699]
[1765530570321,0.26813698,92296.0,92295.0,0.00109699]
[1765530578178,0.22363298,92296.0,92295.0,0.00109699]
[1765530578506,0.26813698,92296.0,92295.0,0.00109699]
[1765530578844,0.24071298,92296.0,92295.0,0.00109699]
[1765530582555,0.22363298,92296.0,92295.0,0.00109699]
[1765530582769,0.24071298,92296.0,92295.0,0.00109699]
[1765530584882,0.3624933,92296.0,92295.0,0.00109699]
[1765530585763,0.28521698,92296.0,92295.0,0.00109699]
[1765530592219,0.29605438,92296.0,92295.0,0.00109699]
[1765530593113,0.25155038,92296.0,92295.0,0.00109699]
[1765530593318,0.29605438,92296.0,92295.0,0.00109699]
[1765530600023,0.25155038,92296.0,92295.0,0.00109699]
[1765530600216,0.33344449,92296.0,92295.0,0.00109699]
[1765530601706,0.29605438,92296.0,92295.0,0.00109699]
[1765530651512,0.23447038,92296.0,92295.0,0.00109699]
[1765530651729,0.007,92296.0,92295.0,0.00109699]
[1765530651932,0.007,92296.0,92295.0,0.21779345]
[1765530652422,0.007,92296.0,92295.0,0.01193228]
[1765530657085,0.007,92296.0,92295.0,0.01342662]
[1765530660097,0.007,92296.0,92295.0,0.23012308]
[1765530661700,0.007,92296.0,92295.0,0.01342662]
[1765530663397,0.007,92296.0,92295.0,0.23012308]
[1765530663602,0.007,92296.0,92295.0,0.01342662]
[1765530664245,0.007,92296.0,92295.0,0.23012308]
[1765530664590,0.007,92296.0,92295.0,0.01342662]
[1765530665577,0.007,92296.0,92295.0,0.00259133]
[1765530670164,0.007,92296.0,92295.0,0.21928779]
[1765530671401,0.007,92296.0,92295.0,0.00259133]
[1765530679154,0.007,92296.0,92295.0,0.01159208]
[1765530679390,0.007,92296.0,92295.0,0.00259133]
[1765530679596,0.007,92296.0,92295.0,0.01051666]
[1765530679944,0.003,92296.0,92295.0,0.02034925]
[1765530680143,0.01708,92306.0,92305.0,0.21667298]
[1765530680511,0.01708,92306.0,92305.0,0.21787856]
[1765530681997,0.01808,92306.0,92305.0,0.21987856]
[1765530682194,0.001,92306.0,92305.0,0.21987856]
[1765530682390,0.001,92306.0,92305.0,0.22087856]
[1765530701203,0.001,92306.0,92305.0,0.51157856]
[1765530701624,0.001,92306.0,92305.0,0.58722815]
[1765530702274,0.01708,92328.0,92327.0,0.21662135]
[1765530703288,0.01083024,92334.0,92331.0,0.01083059]
[1765530703511,0.01708,92333.0,92331.0,0.01083059]
[1765530704290,0.01708,92333.0,92327.0,0.001]
[1765530704611,0.02791036,92333.0,92329.0,0.01083083]
[1765530705182,0.00023079,92339.0,92335.0,0.21660258]
[1765530706060,0.00023079,92339.0,92336.0,0.01082883]
[1765530706825,0.00023079,92339.0,92336.0,0.04879658]
[1765530708279,0.00023079,92339.0,92336.0,0.04979658]
[1765530708776,0.00023079,92339.0,92336.0,0.01182883]
[1765530709070,0.00023079,92339.0,92336.0,0.01282883]
[1765530709842,0.01106045,92339.0,92336.0,0.01282883]
[1765530710035,0.00023079,92339.0,92336.0,0.01282883]
[1765530710446,0.22765474,92339.0,92336.0,0.01282883]
[1765530710651,0.21670163,92337.0,92336.0,0.01282883]
[1765530710863,0.23025279,92337.0,92336.0,0.01282883]
[1765530711211,0.23025279,92337.0,92336.0,0.002]
[1765530711212,0.24733279,92337.0,92336.0,0.002]
[1765530711534,0.2353945,92337.0,92336.0,0.002]
[1765530711735,0.2353945,92337.0,92336.0,0.001]
[1765530711736,0.2798985,92337.0,92336.0,0.001]
[1765530711974,0.01083048,92332.0,92328.0,0.01083095]
[1765530713291,0.01083048,92332.0,92322.0,0.21663234]
[1765530713292,0.0108313,92325.0,92318.0,0.01083212]
[1765530713532,0.22745205,92328.0,92323.0,0.01083153]
[1765530714084,0.01083118,92326.0,92323.0,0.01083153]
[1765530714296,0.0108313,92325.0,92322.0,0.01083165]
[1765530714690,0.0108313,92325.0,92323.0,0.001]
[1765530714969,0.0108313,92325.0,92319.0,0.010832]
[1765530714970,0.01083153,92323.0,92318.0,0.01083212]
[1765530715129,0.01083165,92322.0,92318.0,0.01083212]
[1765530715462,0.01083165,92322.0,92318.0,0.01383212]
[1765530715645,0.01083177,92321.0,92318.0,0.003]
[1765530715852,0.01083177,92321.0,92317.0,0.01083224]
[1765530716213,0.01083177,92321.0,92320.0,0.00077255]
[1765530716969,0.01183177,92321.0,92320.0,0.00077255]
[1765530717541,0.01183177,92321.0,92320.0,0.00177255]
[1765530718283,0.01083177,92321.0,92320.0,0.00077255]
[1765530718482,0.01083177,92321.0,92320.0,0.00277255]
[1765530718483,0.05633577,92321.0,92320.0,0.00277255]
[1765530718760,0.05633577,92321.0,92320.0,0.00377255]
[1765530718952,0.05533577,92321.0,92320.0,0.00177255]
[1765530719355,0.05633577,92321.0,92320.0,0.00277255]
[1765530724063,0.001,92321.0,92320.0,0.00277255]
[1765530724848,0.001,92321.0,92320.0,0.00177255]
[1765530725061,0.01083153,92323.0,92320.0,0.00077255]
[1765530725205,0.21663308,92322.0,92320.0,0.001]
[1765530725403,0.001,92321.0,92320.0,0.002]
[1765530725626,0.045504,92321.0,92320.0,0.002]
[1765530725848,0.044504,92321.0,92320.0,0.00177255]
[1765530726300,0.044504,92321.0,92320.0,0.00277255]
[1765530726494,0.044504,92321.0,92320.0,0.00177255]
[1765530726694,0.06967518,92321.0,92320.0,0.00277255]
[1765530727052,0.06967518,92321.0,92320.0,0.00177255]
[1765530727258,0.06967518,92321.0,92320.0,0.00277255]
[1765530727483,0.06967518,92321.0,92320.0,0.00077255]
[1765530727897,0.06967518,92321.0,92320.0,0.00177255]
[1765530727898,0.07567518,92321.0,92320.0,0.00177255]
[1765530728322,0.07467518,92321.0,92320.0,0.00077255]
[1765530728688,0.07967518,92321.0,92320.0,0.00177255]
[1765530728880,0.1067546,92321.0,92320.0,0.00177255]
[1765530729383,0.0967546,92321.0,92320.0,0.00077255]
[1765530729709,0.1007546,92321.0,92320.0,0.00077255]
[1765530729909,0.0967546,92321.0,92320.0,0.00077255]
[1765530730585,0.1017546,92321.0,92320.0,0.00177255]
[1765530730940,0.1007546,92321.0,92320.0,0.00077255]
[1765530731152,0.0967546,92321.0,92320.0,0.00077255]
[1765530731354,0.1017546,92321.0,92320.0,0.00177255]
[1765530731556,0.1057546,92321.0,92320.0,0.00177255]
[1765530731759,0.1007546,92321.0,92320.0,0.00077255]
[1765530731955,0.0562506,92321.0,92320.0,0.00077255]
[1765530732224,0.1057546,92321.0,92320.0,0.00177255]
[1765530732636,0.1017546,92321.0,92320.0,0.00177255]
[1765530733268,0.1057546,92321.0,92320.0,0.00177255]
[1765530733475,0.0612506,92321.0,92320.0,0.00177255]
[1765530733694,0.09366342,92321.0,92320.0,0.00177255]
[1765530733958,0.08866342,92321.0,92320.0,0.00077255]
[1765530734159,0.09266342,92321.0,92320.0,0.00077255]
[1765530734317,0.09366342,92321.0,92320.0,0.00177255]
[1765530734835,0.09266342,92321.0,92320.0,0.00077255]
[1765530735044,0.09666342,92321.0,92320.0,0.00177255]
[1765530735646,0.09266342,92321.0,92320.0,0.00077255]
[1765530735808,0.08866342,92321.0,92320.0,0.00077255]
[1765530736016,0.09666342,92321.0,92320.0,0.00177255]
[1765530736818,0.09266342,92321.0,92320.0,0.00177255]
[1765530737015,0.09266342,92321.0,92320.0,0.00077255]
[1765530737503,0.09666342,92321.0,92320.0,0.00177255]
[1765530737906,0.09266342,92321.0,92320.0,0.00077255]
[1765530738135,0.03107942,92321.0,92320.0,0.00077255]
[1765530738339,0.02508,92321.0,92320.0,0.00177255]
[1765530738537,0.008,92321.0,92320.0,0.00177255]
[1765530738869,0.01708,92321.0,92320.0,0.00077255]
[1765530739079,0.02508,92321.0,92320.0,0.00177255]
[1765530739576,0.02108,92321.0,92320.0,0.00177255]
[1765530739758,0.02508,92321.0,92320.0,0.00177255]
[1765530739960,0.02108,92321.0,92320.0,0.00177255]
[1765530740338,0.02508,92321.0,92320.0,0.00177255]
[1765530740702,0.02108,92321.0,92320.0,0.00077255]
[1765530740906,0.02508,92321.0,92320.0,0.00177255]
[1765530741230,0.02108,92321.0,92320.0,0.00077255]
[1765530741671,0.02108,92321.0,92320.0,0.00177255]
[1765530742068,0.02108,92321.0,92320.0,0.00077255]
[1765530742355,0.01708,92321.0,92320.0,0.00077255]
[1765530742566,0.02108,92321.0,92320.0,0.00177255]
[1765530743762,0.01708,92321.0,92320.0,0.00077255]
[1765530743966,0.01808,92321.0,92320.0,0.00177255]
[1765530744733,0.04373981,92321.0,92320.0,0.00177255]
[1765530745411,0.01808,92321.0,92320.0,0.00177255]
[1765530746390,0.01908,92321.0,92320.0,0.00177255]
[1765530746591,0.01808,92321.0,92320.0,0.00077255]
[1765530747003,0.01908,92321.0,92320.0,0.00177255]
[1765530747376,0.09066342,92321.0,92320.0,0.00177255]
[1765530747628,0.04615942,92321.0,92320.0,0.00177255]
[1765530751346,0.01908,92321.0,92320.0,0.00177255]
[1765530751698,0.09066342,92321.0,92320.0,0.00177255]
[1765530752656,0.063584,92321.0,92320.0,0.00177255]
[1765530752848,0.01908,92321.0,92320.0,0.00177255]
[1765530753329,0.002,92321.0,92320.0,0.00177255]
[1765530757359,0.002,92321.0,92320.0,0.29247255]
[1765530757965,0.001,92321.0,92320.0,0.29247255]
[1765530758413,0.001,92321.0,92320.0,0.29447255]
[1765530758788,0.01708,92327.0,92324.0,0.01083141]
[1765530759775,0.01708,92327.0,92325.0,0.21662604]
[1765530759929,0.01808,92327.0,92325.0,0.21662604]
[1765530760514,0.01708,92327.0,92325.0,0.21662604]
[1765530760712,0.01808,92327.0,92325.0,0.21662604]
[1765530761322,0.01808,92327.0,92325.0,0.21762604]
[1765530761940,0.01708,92327.0,92325.0,0.21762604]
[1765530762145,0.01708,92327.0,92325.0,0.21662604]
[1765530762343,0.01808,92327.0,92325.0,0.21862604]
[1765530763262,0.01708,92330.0,92328.0,0.21661833]
[1765530764759,0.01708,92330.0,92328.0,0.21761833]
[1765530764991,0.01708,92330.0,92328.0,0.21661833]
[1765530765393,0.01808,92330.0,92328.0,0.21761833]
[1765530765783,0.01708,92334.0,92333.0,0.01083036]
[1765530767011,0.01808,92334.0,92333.0,0.01083036]
[1765530767490,0.01808,92334.0,92333.0,0.01183036]
[1765530767993,0.001,92334.0,92333.0,0.01183036]
[1765530768819,0.00010374,92337.0,92334.0,0.22743517]
[1765530769231,0.00010374,92337.0,92336.0,0.21660024]
[1765530769935,0.00110374,92337.0,92336.0,0.21660024]
[1765530771170,0.00010374,92337.0,92336.0,0.21660024]
[1765530771663,0.00110374,92337.0,92336.0,0.21791105]
[1765530772215,0.00010374,92337.0,92336.0,0.21691105]
[1765530772597,0.00110374,92337.0,92336.0,0.21791105]
[1765530780680,0.00110374,92337.0,92336.0,0.26103903]
[1765530781388,0.00110374,92337.0,92336.0,0.55173903]
[1765530787452,0.00110374,92337.0,92336.0,0.56881903]
[1765530792358,0.00110374,92337.0,92336.0,0.52569105]
[1765530792580,0.00110374,92337.0,92336.0,0.56881903]
[1765530792786,0.00010858,92337.0,92336.0,0.6466294]
[1765530793138,0.00023079,92339.0,92338.0,0.21659555]
[1765530793480,0.00023079,92339.0,92338.0,0.55067664]
[1765530793814,0.00023079,92339.0,92338.0,0.5831851]
[1765530794371,0.00123079,92339.0,92338.0,0.5881851]
[1765530794718,0.00023079,92339.0,92338.0,0.5831851]
[1765530795531,0.00023079,92339.0,92338.0,0.66099547]
[1765530796266,0.00123079,92339.0,92338.0,0.66999547]
[1765530796467,0.00123079,92339.0,92338.0,0.5921851]
[1765530797195,0.00123079,92339.0,92338.0,0.66999547]
[1765530800471,0.00123079,92339.0,92338.0,0.5921851]
[1765530801265,0.00123079,92339.0,92338.0,0.66999547]
[1765530801464,0.00123079,92339.0,92338.0,0.5921851]
[1765530802807,0.01708,92373.0,92338.0,0.5921851]
[1765530802808,0.01708,92373.0,92372.0,0.21651582]
[1765530803250,0.01806048,92373.0,92372.0,0.21651582]
[1765530804077,0.01906048,92373.0,92372.0,0.21751582]
[1765530805223,0.01906048,92373.0,92372.0,0.001]
[1765530805438,0.02006048,92373.0,92372.0,0.001]
[1765530806365,0.00298048,92373.0,92372.0,0.001]
[1765530806875,0.00298048,92373.0,92372.0,0.04412798]
[1765530807466,0.00298048,92373.0,92372.0,0.001]
[1765530808231,0.00198048,92373.0,92372.0,0.001]
[1765530808435,0.00098048,92373.0,92372.0,0.50721582]
[1765530808620,0.00098048,92373.0,92372.0,0.50821582]
[1765530822865,0.00136961,92373.0,92372.0,0.50821582]
[1765530824052,0.00136961,92373.0,92372.0,0.51254914]
[1765530824392,0.00136961,92373.0,92372.0,0.51154914]
[1765530824802,0.00236961,92373.0,92372.0,0.51554914]
[1765530825174,0.00236961,92373.0,92372.0,0.51854914]
[1765530826622,0.00236961,92373.0,92372.0,0.56167712]
[1765530831245,0.00236961,92373.0,92372.0,0.51854914]
[1765530831449,0.00236961,92373.0,92372.0,0.56167712]
[1765530834186,0.00023682,92373.0,92372.0,0.56167712]
[1765530836048,2.419e-05,92373.0,92372.0,0.56167712]
[1765530836924,0.0004,92380.0,92372.0,0.56167712]
[1765530836925,0.0004,92380.0,92379.0,0.5503274]
[1765530837635,0.0004,92380.0,92379.0,0.55465975]
[1765530838332,0.0004,92380.0,92379.0,0.55665975]
[1765530839160,0.0014,92380.0,92379.0,0.55865975]
[1765530841327,0.0014,92380.0,92379.0,0.5317611]
[1765530841545,0.0014,92380.0,92379.0,0.57488908]
[1765530843601,0.0014,92380.0,92379.0,1.62490747]
[1765530844258,0.00033776,92390.0,92389.0,0.60032235]
[1765530844484,0.00033776,92390.0,92389.0,0.61740235]
[1765530844632,0.00033776,92390.0,92389.0,0.73279526]
[1765530844828,0.00033776,92390.0,92389.0,0.73712668]
[1765530845036,0.00033776,92390.0,92389.0,0.60968313]
[1765530845258,0.00033776,92390.0,92389.0,0.54947515]
[1765530845435,0.00033776,92390.0,92389.0,0.55147515]
[1765530845637,0.00033776,92390.0,92389.0,0.59460313]
[1765530846746,0.00033776,92390.0,92389.0,0.59660313]
[1765530847311,0.00033776,92390.0,92389.0,0.55347515]
[1765530847693,0.00033776,92390.0,92389.0,0.29903142]
[1765530847905,0.00033776,92390.0,92389.0,0.00833142]
[1765530848099,0.00033776,92390.0,92389.0,0.004]
[1765530848998,0.00033776,92390.0,92389.0,0.002]
[1765530849198,0.00033776,92390.0,92389.0,0.004]
[1765530849814,0.00059719,92390.0,92389.0,0.002]
[1765530850226,0.00059719,92390.0,92389.0,0.21847598]
[1765530850424,0.00059719,92390.0,92389.0,0.21947598]
[1765530850625,0.00059719,92390.0,92389.0,0.003]
[1765530850946,0.00059719,92390.0,92389.0,0.002]
[1765530851142,0.00059719,92390.0,92389.0,0.003]
[1765530853292,0.00059719,92390.0,92388.0,0.09796775]
[1765530853433,0.00033776,92390.0,92389.0,0.002]
[1765530853636,0.00033776,92390.0,92389.0,0.003]
[1765530855038,0.00033776,92390.0,92389.0,0.001]
[1765530855971,0.00033776,92390.0,92389.0,0.003]
[1765530857632,0.2168114,92390.0,92389.0,0.003]
[1765530859197,0.00033776,92390.0,92389.0,0.003]
[1765530859531,0.00059719,92390.0,92389.0,0.003]
[1765530862293,0.21707083,92390.0,92389.0,0.003]
[1765530863708,0.00059719,92390.0,92389.0,0.003]
[1765530865806,0.00221006,92390.0,92389.0,0.003]
[1765530866999,0.21647598,92389.0,92388.0,0.06]
[1765530867201,0.21808885,92389.0,92388.0,0.06]
[1765530867425,0.21831946,92389.0,92388.0,0.06]
[1765530867854,0.23539946,92389.0,92388.0,0.06]
[1765530868023,0.22733804,92374.0,92367.0,0.01082637]
[1765530868231,0.22733804,92374.0,92369.0,0.03250012]
[1765530868542,0.22733804,92374.0,92367.0,0.01082637]
[1765530868744,0.01082555,92374.0,92370.0,0.01082602]
[1765530868943,0.0108252,92377.0,92374.0,0.01082555]
[1765530869874,0.01082497,92379.0,92375.0,0.2907]
[1765530870771,0.01082508,92378.0,92374.0,0.001]
[1765530870938,0.0108252,92377.0,92370.0,0.30152602]
[1765530871190,0.01082532,92376.0,92375.0,0.002]
[1765530871604,0.01082543,92375.0,92372.0,0.33949354]
[1765530872030,0.01082543,92375.0,92374.0,0.002]
[1765530872683,0.01082532,92376.0,92374.0,0.002]
[1765530872896,0.01094182,92377.0,92374.0,0.002]
[1765530873103,0.00011662,92377.0,92374.0,0.00901121]
[1765530873318,0.00011662,92377.0,92374.0,0.00701121]
[1765530873522,0.001,92375.0,92374.0,0.01783676]
[1765530873934,0.001,92375.0,92374.0,0.01883676]
[1765530874141,0.00011662,92377.0,92374.0,0.01883676]
[1765530874355,0.00111662,92377.0,92374.0,0.02183676]
[1765530874565,0.00111662,92377.0,92375.0,0.21650879]
[1765530875415,0.00011662,92377.0,92375.0,0.21650879]
[1765530876165,0.00011662,92377.0,92375.0,0.21750879]
[1765530877546,0.00111662,92377.0,92375.0,0.21950879]
[1765530885766,0.00111662,92377.0,92376.0,0.00812581]
[1765530886488,0.00111662,92377.0,92375.0,0.21950879]
[1765530886800,0.00011662,92377.0,92376.0,0.00801285]
[1765530887004,0.00011662,92377.0,92376.0,0.01001285]
[1765530887413,0.00011662,92377.0,92376.0,0.00801285]
[1765530887622,0.00011662,92377.0,92376.0,0.00901285]
[1765530887824,0.00111662,92377.0,92376.0,0.00901285]
[1765530888324,0.00111662,92377.0,92376.0,0.001]
[1765530889212,0.00011662,92377.0,92376.0,0.001]
[1765530889412,0.00011662,92377.0,92376.0,0.003]
[1765530895007,0.00011662,92377.0,92376.0,0.01101303]
[1765530895676,0.00011662,92377.0,92376.0,0.00901303]
[1765530896079,0.00011662,92377.0,92376.0,0.01101303]
[1765530896285,0.00011662,92377.0,92376.0,0.003]
[1765530896932,0.00011662,92377.0,92376.0,0.002]
[1765530897354,0.00011662,92377.0,92376.0,0.003]
[1765530898300,0.00011662,92377.0,92376.0,0.001]
[1765530898498,0.00011662,92377.0,92376.0,0.002]
[1765530898715,0.21662072,92377.0,92376.0,0.002]
[1765530898968,0.21662072,92377.0,92376.0,0.003]
[1765530899182,0.21662072,92377.0,92376.0,0.001]
[1765530899620,0.21662072,92377.0,92376.0,0.003]
[1765530900015,0.01082555,92374.0,92371.0,0.0108259]
[1765530900222,0.21651088,92375.0,92372.0,0.2907]
[1765530900428,0.00011662,92377.0,92376.0,0.001]
[1765530900652,0.00011662,92377.0,92375.0,0.21650828]
[1765530901072,0.00011662,92377.0,92376.0,0.001]
[1765530901275,0.00011662,92377.0,92376.0,0.002]
[1765530901683,0.00011662,92377.0,92376.0,0.003]
[1765530901886,0.00011662,92377.0,92375.0,0.21650828]
[1765530902386,0.00111662,92377.0,92375.0,0.21850828]
[1765530903153,0.00111662,92377.0,92376.0,0.00586811]
[1765530904155,0.00011662,92377.0,92376.0,0.00586811]
[1765530904392,0.00011662,92377.0,92376.0,0.00686811]
[1765530904625,0.00011662,92377.0,92376.0,0.00786811]
[1765530905174,0.00011662,92377.0,92376.0,0.00686811]
[1765530905352,0.00011662,92377.0,92376.0,0.00886811]
[1765530905506,0.00011662,92377.0,92376.0,0.29956811]
[1765530905708,0.00011662,92377.0,92376.0,0.33682798]
[1765530905916,0.00011662,92377.0,92376.0,0.33482798]
[1765530906090,0.00011662,92377.0,92376.0,0.4115422]
[1765530906296,0.00011662,92377.0,92376.0,0.33582798]
[1765530906679,0.00011662,92377.0,92376.0,0.34116089]
[1765530907220,0.00011662,92377.0,92376.0,0.34016089]
[1765530907688,0.00011662,92377.0,92376.0,0.34116089]
[1765530907868,0.00011662,92377.0,92376.0,0.29803291]
[1765530908488,0.00111662,92377.0,92376.0,0.30203291]
[1765530909013,0.00011662,92377.0,92376.0,0.29803291]
[1765530909186,0.00011662,92377.0,92376.0,0.29503291]
[1765530909395,0.00111662,92377.0,92376.0,0.29903291]
[1765530909571,0.00111662,92377.0,92376.0,0.30103291]
[1765530910386,0.00111662,92377.0,92376.0,0.34416089]
[1765530910967,0.00111662,92377.0,92376.0,0.30103291]
[1765530911163,0.00111662,92377.0,92376.0,0.34416089]
[1765530911367,0.00111662,92377.0,92376.0,0.30103291]
[1765530912000,0.00011662,92377.0,92376.0,0.29703291]
[1765530912203,0.00111662,92377.0,92376.0,0.29903291]
[1765530912606,0.00111662,92377.0,92376.0,0.30103291]
[1765530912819,0.00111662,92377.0,92376.0,0.29903291]
[1765530913198,0.00111662,92377.0,92376.0,0.34416089]
[1765530913398,0.00111662,92377.0,92376.0,0.34216089]
[1765530913623,0.00011662,92377.0,92376.0,0.33816089]
[1765530913967,0.00111662,92377.0,92376.0,0.34216089]
[1765530914344,0.00011662,92377.0,92376.0,0.33816089]
[1765530914741,0.00111662,92377.0,92376.0,0.34216089]
[1765530915364,0.00011662,92377.0,92376.0,0.33816089]
[1765530915770,0.00011662,92377.0,92376.0,0.34016089]
[1765530916716,0.00111662,92377.0,92376.0,0.34416089]
[1765530917393,0.00011662,92377.0,92376.0,0.34016089]
[1765530917601,0.00111662,92377.0,92376.0,0.34216089]
[1765530918031,0.00111662,92377.0,92376.0,0.33816089]
[1765530918183,0.00011662,92377.0,92376.0,0.33816089]
[1765530918350,0.00111662,92377.0,92376.0,0.34216089]
[1765530919036,0.00111662,92377.0,92376.0,0.34416089]
[1765530919598,0.00011662,92377.0,92376.0,0.34016089]
[1765530919997,0.00111662,92377.0,92376.0,0.34416089]
[1765530920195,0.00111662,92377.0,92376.0,0.30103291]
[1765530920403,0.00011662,92377.0,92376.0,0.29703291]
[1765530920936,0.00111662,92377.0,92376.0,0.30103291]
[1765530921137,0.00111662,92377.0,92376.0,0.34416089]
[1765530921344,0.00011662,92377.0,92376.0,0.34016089]
[1765530921729,0.00111662,92377.0,92376.0,0.34216089]
[1765530922252,0.00111662,92377.0,92376.0,0.34416089]
[1765530922395,0.00111662,92377.0,92376.0,0.34216089]
[1765530922798,0.00011662,92377.0,92376.0,0.34016089]
[1765530923030,0.00011662,92377.0,92376.0,0.33816089]
[1765530923230,0.00111662,92377.0,92376.0,0.34216089]
[1765530923498,0.00111662,92377.0,92376.0,0.34416089]
[1765530923697,0.00011662,92377.0,92376.0,0.34016089]
[1765530924062,0.00111662,92377.0,92376.0,0.34416089]
[1765530924509,0.00011662,92377.0,92376.0,0.34016089]
[1765530924913,0.00111662,92377.0,92376.0,0.34216089]
[1765530925117,0.00111662,92377.0,92376.0,0.34416089]
[1765530925443,0.00111662,92377.0,92376.0,0.34216089]
[1765530925780,0.00111662,92377.0,92376.0,0.34416089]
[1765530926007,0.00011662,92377.0,92376.0,0.34016089]
[1765530926428,0.00011662,92377.0,92376.0,0.34416089]
[1765530926429,0.00111662,92377.0,92376.0,0.34416089]
[1765530926763,0.00011662,92377.0,92376.0,0.34016089]
[1765530927551,0.00011662,92377.0,92376.0,0.34416089]
[1765530927733,0.00111662,92377.0,92376.0,0.34216089]
[1765530928283,0.00111662,92377.0,92376.0,0.34416089]
[1765530928458,0.00111662,92377.0,92376.0,0.34216089]
[1765530928687,0.00111662,92377.0,92376.0,0.34416089]
[1765530929157,0.00011662,92377.0,92376.0,0.34016089]
[1765530929408,0.00111662,92377.0,92376.0,0.34416089]
[1765530929757,0.00111662,92377.0,92376.0,0.34016089]
[1765530929963,0.00011662,92377.0,92376.0,0.34016089]
[1765530930158,0.00111662,92377.0,92376.0,0.34416089]
[1765530930698,0.00011662,92377.0,92376.0,0.34016089]
[1765530930888,0.00011662,92377.0,92376.0,0.33816089]
[1765530931107,0.00111662,92377.0,92376.0,0.34416089]
[1765530931307,0.00111662,92377.0,92376.0,0.34216089]
[1765530931725,0.00111662,92377.0,92376.0,0.34416089]
[1765530932068,0.00111662,92377.0,92376.0,0.34216089]
[1765530932294,0.00111662,92377.0,92376.0,0.34016089]
[1765530932295,0.00011662,92377.0,92376.0,0.34016089]
[1765530932496,0.00111662,92377.0,92376.0,0.34416089]
[1765530933175,0.00011662,92377.0,92376.0,0.34016089]
[1765530933392,0.00111662,92377.0,92376.0,0.34416089]
[1765530933793,0.00011662,92377.0,92376.0,0.33816089]
[1765530934172,0.00111662,92377.0,92376.0,0.34416089]
[1765530934374,0.00111662,92377.0,92376.0,0.34216089]
[1765530934601,0.00111662,92377.0,92376.0,0.34316089]
[1765530935030,0.00111662,92377.0,92376.0,0.34216089]
[1765530935349,0.00111662,92377.0,92376.0,0.34416089]
[1765530935615,0.00011662,92377.0,92376.0,0.33816089]
[1765530935846,0.00111662,92377.0,92376.0,0.34116089]